fUST/lending_fUST_20250705
["ID","MTS","AMOUNT","RATE_DAILY","PERIOD"]
[369699749,1751704263857,-151.0,0.00020506,2]
[369699750,1751704263866,-300.0,0.00020506,2]
[369699751,1751704263876,-151.0,0.00020506,2]
[369699752,1751704263885,-151.0,0.00020506,2]
[369699753,1751704263894,-151.0,0.00020506,2]
[369699754,1751704263904,-151.0,0.00020506,2]
[369699755,1751704263913,-500.0,0.00020506,2]
[369699756,1751704263922,-151.0,0.00020506,2]
[369699757,1751704263932,-500.0,0.00020506,2]
[369699758,1751704263941,-151.0,0.00020506,2]
[369699759,1751704263950,-500.0,0.00020506,2]
[369699760,1751704264059,-151.0,0.00020506,2]
[369699761,1751704264070,-500.0,0.00020506,2]
[369699762,1751704264080,-646.41221724,0.00020506,2]
[369699763,1751704264089,-151.0,0.00020506,2]
[369699764,1751704264099,-151.0,0.00020506,2]
[369699765,1751704264108,-151.0,0.00020506,2]
[369699766,1751704264118,-151.0,0.00020506,2]
[369699767,1751704264127,-151.0,0.00020506,2]
[369699768,1751704264137,-25000.0,0.00020506,2]
[369699769,1751704264148,-15253.28197842,0.00020506,2]
[369699770,1751704264157,-151.0,0.00020506,2]
[369699771,1751704264167,-1229.90421,0.00020506,2]
[369699772,1751704264177,-1229.90421,0.00020506,2]
[369699773,1751704264186,-500.0,0.00020507,2]
[369699774,1751704264195,-500.0,0.00020507,2]
[369699775,1751704264205,-569.09339871,0.00020507,2]
[369699776,1751704264215,-240.583333,0.00020509,2]
[369699777,1751704264225,-151.0,0.00020547,2]
[369699778,1751704264234,-185.004279,0.00020547,2]
[369699779,1751704264248,-151.0,0.00020547,2]
[369699780,1751704264257,-460.0,0.00020547,2]
[369699781,1751704264267,-460.0,0.00020547,2]
[369699782,1751704264276,-460.0,0.00020547,2]
[369699783,1751704264285,-319.26,0.00020547,2]
[369699784,1751704264295,-460.0,0.00020547,2]
[369699785,1751704264304,-510.63,0.00020547,2]
[369699786,1751704264313,-504.58,0.00020547,2]
[369699787,1751704264323,-460.0,0.00020547,2]
[369699788,1751704264333,-309.87,0.00020547,2]
[369699789,1751704264343,-501.35,0.00020547,2]
[369699790,1751704264352,-400.36,0.00020547,2]
[369699791,1751704264362,-460.0,0.00020547,2]
[369699792,1751704264371,-255.16,0.00020547,2]
[369699793,1751704264380,-460.0,0.00020547,2]
[369699794,1751704264390,-460.0,0.00020547,2]
[369699795,1751704264399,-460.0,0.00020547,2]
[369699796,1751704264409,-469.1,0.00020547,2]
[369699797,1751704264418,-460.0,0.00020547,2]
[369699798,1751704264428,-460.0,0.00020547,2]
[369699799,1751704264437,-460.0,0.00020547,2]
[369699800,1751704264446,-652.16,0.00020547,2]
[369699801,1751704264455,-573.96,0.00020547,2]
[369699802,1751704264464,-460.0,0.00020547,2]
[369699803,1751704264473,-460.0,0.00020547,2]
[369699804,1751704264483,-460.0,0.00020547,2]
[369699805,1751704264492,-460.0,0.00020547,2]
[369699806,1751704264502,-460.0,0.00020547,2]
[369699807,1751704264511,-460.0,0.00020547,2]
[369699808,1751704264521,-636.47,0.00020547,2]
[369699809,1751704264530,-473.85416286,0.00020547,2]
[369699810,1751704264540,-460.0,0.00020547,2]
[369699811,1751704264549,-460.0,0.00020547,2]
[369699812,1751704264559,-460.0,0.00020547,2]
[369699813,1751704264567,-664.47,0.00020547,2]
[369699814,1751704264577,-194.2,0.00020547,2]
[369699815,1751704264586,-460.0,0.00020547,2]
[369699816,1751704264595,-460.0,0.00020547,2]
[369699817,1751704264604,-531.46,0.00020547,2]
[369699818,1751704264613,-460.0,0.00020547,2]
[369699819,1751704264622,-460.0,0.00020547,2]
[369699820,1751704264631,-460.0,0.00020547,2]
[369699821,1751704264641,-505.79,0.00020547,2]
[369699822,1751704264650,-525.57,0.00020547,2]
[369699823,1751704264659,-460.0,0.00020547,2]
[369699824,1751704264669,-460.0,0.00020547,2]
[369699825,1751704264678,-473.21,0.00020547,2]
[369699826,1751704264687,-460.0,0.00020547,2]
[369699827,1751704264696,-460.0,0.00020547,2]
[369699828,1751704264705,-460.0,0.00020547,2]
[369699829,1751704264715,-460.0,0.00020547,2]
[369699830,1751704264723,-460.0,0.00020547,2]
[369699831,1751704264732,-460.0,0.00020547,2]
[369699832,1751704264741,-460.0,0.00020547,2]
[369699833,1751704264751,-460.0,0.00020547,2]
[369699834,1751704264760,-460.0,0.00020547,2]
[369699835,1751704264769,-571.78,0.00020547,2]
[369699836,1751704264778,-169.58,0.00020547,2]
[369699837,1751704264788,-616.8,0.00020547,2]
[369699838,1751704264797,-460.0,0.00020547,2]
[369699839,1751704264806,-460.0,0.00020547,2]
[369699840,1751704264815,-1164.28,0.00020547,2]
[369699841,1751704264824,-619.37,0.00020547,2]
[369699842,1751704264833,-460.0,0.00020547,2]
[369699843,1751704264843,-151.0,0.00020547,2]
[369699844,1751704264852,-460.0,0.00020547,2]
[369699845,1751704264861,-522.05296843,0.00020547,2]
[369699846,1751704264871,-211.81,0.00020547,2]
[369699847,1751704264880,-460.0,0.00020547,2]
[369699848,1751704264889,-1134.22,0.00020547,2]
[369699849,1751704264898,-460.0,0.00020547,2]
[369699850,1751704264908,-191.72,0.00020547,2]
[369699851,1751704264917,-1788.36,0.00020547,2]
[369699852,1751704264927,-1137.75,0.00020547,2]
[369699853,1751704264936,-460.0,0.00020547,2]
[369699854,1751704264947,-2762.52,0.00020547,2]
[369699855,1751704264956,-460.0,0.00020547,2]
[369699856,1751704264966,-460.0,0.00020547,2]
[369699857,1751704264976,-460.0,0.00020547,2]
[369699858,1751704264986,-460.0,0.00020547,2]
[369699859,1751704264995,-1927.71,0.00020547,2]
[369699860,1751704265005,-4017.64,0.00020547,2]
[369699861,1751704265015,-460.0,0.00020547,2]
[369699862,1751704265024,-481.61,0.00020547,2]
[369699863,1751704265033,-493.94,0.00020547,2]
[369699864,1751704265042,-460.0,0.00020547,2]
[369699865,1751704265052,-460.0,0.00020547,2]
[369699866,1751704265062,-628.3,0.00020547,2]
[369699867,1751704265071,-742.21,0.00020547,2]
[369699868,1751704265080,-909.15,0.00020547,2]
[369699869,1751704265090,-2245.38,0.00020547,2]
[369699870,1751704265099,-460.0,0.00020547,2]
[369699871,1751704265108,-460.0,0.00020547,2]
[369699872,1751704265118,-506.07,0.00020547,2]
[369699873,1751704265128,-366.53220393,0.00020547,2]
[369699874,1751704265137,-3792.29,0.00020547,2]
[369699875,1751704265149,-461.91,0.00020547,2]
[369699876,1751704265159,-460.0,0.00020547,2]
[369699877,1751704265168,-460.0,0.00020547,2]
[369699878,1751704265177,-460.0,0.00020547,2]
[369699879,1751704265187,-460.0,0.00020547,2]
[369699880,1751704265196,-460.0,0.00020547,2]
[369699881,1751704265205,-1256.94,0.00020547,2]
[369699882,1751704265215,-151.0,0.00020547,2]
[369699883,1751704265224,-2336.48,0.00020547,2]
[369699884,1751704265233,-151.0,0.00020547,2]
[369699885,1751704265245,-1656.6,0.00020547,2]
[369699886,1751704265255,-460.0,0.00020547,2]
[369699887,1751704265263,-566.79,0.00020547,2]
[369699888,1751704265273,-1475.22,0.00020547,2]
[369699889,1751704265283,-460.0,0.00020547,2]
[369699890,1751704265292,-340.08,0.00020547,2]
[369699891,1751704265300,-460.0,0.00020547,2]
[369699892,1751704265310,-151.0,0.00020547,2]
[369699893,1751704265319,-460.0,0.00020547,2]
[369699894,1751704265329,-460.0,0.00020547,2]
[369699895,1751704265338,-1325.52,0.00020547,2]
[369699896,1751704265347,-460.36,0.00020547,2]
[369699897,1751704265357,-625.02,0.00020547,2]
[369699898,1751704265366,-460.0,0.00020547,2]
[369699899,1751704265375,-452.45,0.00020547,2]
[369699900,1751704265385,-151.0,0.00020547,2]
[369699901,1751704265394,-470.33,0.00020547,2]
[369699902,1751704265404,-460.0,0.00020547,2]
[369699903,1751704265414,-460.0,0.00020547,2]
[369699904,1751704265423,-1232.09,0.00020547,2]
[369699905,1751704265434,-1457.88,0.00020547,2]
[369699906,1751704265444,-460.0,0.00020547,2]
[369699907,1751704265454,-460.0,0.00020547,2]
[369699908,1751704265463,-280.88,0.00020547,2]
[369699909,1751704265473,-190.65,0.00020547,2]
[369699910,1751704265482,-460.0,0.00020547,2]
[369699911,1751704265492,-460.0,0.00020547,2]
[369699912,1751704265501,-596.18,0.00020547,2]
[369699913,1751704265511,-460.0,0.00020547,2]
[369699914,1751704265520,-460.0,0.00020547,2]
[369699915,1751704265529,-460.0,0.00020547,2]
[369699916,1751704265539,-791.06,0.00020547,2]
[369699917,1751704265549,-460.0,0.00020547,2]
[369699918,1751704265559,-460.0,0.00020547,2]
[369699919,1751704265661,-613.01,0.00020547,2]
[369699920,1751704265671,-460.0,0.00020547,2]
[369699921,1751704265682,-460.0,0.00020547,2]
[369699922,1751704265692,-976.15,0.00020547,2]
[369699923,1751704265701,-460.0,0.00020547,2]
[369699924,1751704265712,-3563.33,0.00020547,2]
[369699925,1751704265721,-651.59,0.00020547,2]
[369699926,1751704265731,-460.0,0.00020547,2]
[369699927,1751704265740,-207.59120117,0.00020555,3]
[369699928,1751704265749,-716.195754,0.00020561,2]
[369699929,1751704265758,-1500.0,0.00020568,2]
[369699930,1751704265767,-500.0,0.00020568,2]
[369699931,1751704265776,-1500.0,0.00020568,2]
[369699932,1751704265786,-1500.0,0.00020568,2]
[369699933,1751704265795,-843.13370571,0.00020568,2]
[369699934,1751704265804,-1500.0,0.00020568,2]
[369699935,1751704265813,-1500.0,0.00020568,2]
[369699936,1751704265822,-420.0,0.00020579,2]
[369699937,1751704265831,-4673.41,0.000206,2]
[369699938,1751704265841,-151.0,0.000206,2]
[369699939,1751704265850,-151.0,0.000206,2]
[369699940,1751704265859,-240.583333,0.00020602,2]
[369699941,1751704265869,-151.0,0.00020661,2]
[369699942,1751704265879,-153.0,0.00020685,2]
[369699943,1751704265888,-153.0,0.00020685,2]
[369699944,1751704265897,-153.0,0.00020685,2]
[369699945,1751704265906,-168.0,0.00020693,2]
[369699946,1751704265916,-240.583333,0.00020694,2]
[369699947,1751704265927,-151.0,0.000207,3]
[369699948,1751704265936,-207.59120117,0.00020762,3]
[369699949,1751704265946,-240.583333,0.00020787,2]
[369699950,1751704265956,-248.362569,0.0002081,2]
[369699951,1751704265966,-248.362569,0.0002081,2]
[369699952,1751704265976,-500.0,0.0002082,10]
[369699953,1751704265985,-500.0,0.0002082,10]
[369699954,1751704265995,-460.0,0.00020821,2]
[369699955,1751704266004,-460.0,0.00020821,2]
[369699956,1751704266014,-460.0,0.00020821,2]
[369699957,1751704266023,-501.35,0.00020821,2]
[369699958,1751704266033,-151.0,0.00020821,2]
[369699959,1751704266043,-460.0,0.00020821,2]
[369699960,1751704266053,-151.0,0.00020821,2]
[369699961,1751704266063,-460.0,0.00020821,2]
[369699962,1751704266073,-460.0,0.00020821,2]
[369699963,1751704266082,-460.0,0.00020821,2]
[369699964,1751704266092,-469.1,0.00020821,2]
[369699965,1751704266102,-460.0,0.00020821,2]
[369699966,1751704266111,-460.0,0.00020821,2]
[369699967,1751704266121,-460.0,0.00020821,2]
[369699968,1751704266131,-652.16,0.00020821,2]
[369699969,1751704266141,-573.96,0.00020821,2]
[369699970,1751704266151,-460.0,0.00020821,2]
[369699971,1751704266161,-360.66173995,0.00020821,2]
[369699972,1751704266171,-460.45,0.00020821,2]
[369699973,1751704266183,-473.42302171,0.00020821,2]
[369699974,1751704266192,-460.0,0.00020821,2]
[369699975,1751704266202,-460.0,0.00020821,2]
[369699976,1751704266211,-636.47,0.00020821,2]
[369699977,1751704266221,-306.09,0.00020821,2]
[369699978,1751704266230,-460.0,0.00020821,2]
[369699979,1751704266240,-664.47,0.00020821,2]
[369699980,1751704266253,-460.0,0.00020821,2]
[369699981,1751704266262,-246.17,0.00020821,2]
[369699982,1751704266272,-460.0,0.00020821,2]
[369699983,1751704266281,-460.0,0.00020821,2]
[369699984,1751704266290,-460.0,0.00020821,2]
[369699985,1751704266300,-505.79,0.00020821,2]
[369699986,1751704266309,-365.26,0.00020821,2]
[369699987,1751704266318,-471.46,0.00020821,2]
[369699988,1751704266327,-151.0,0.00020821,2]
[369699989,1751704266338,-151.0,0.00020821,2]
[369699990,1751704266347,-460.0,0.00020821,2]
[369699991,1751704266356,-460.0,0.00020821,2]
[369699992,1751704266366,-460.0,0.00020821,2]
[369699993,1751704266376,-411.03,0.00020821,2]
[369699994,1751704266385,-158.8,0.00020821,2]
[369699995,1751704266395,-460.0,0.00020821,2]
[369699996,1751704266405,-506.24356945,0.00020821,2]
[369699997,1751704266414,-460.0,0.00020821,2]
[369699998,1751704266424,-460.0,0.00020821,2]
[369699999,1751704266433,-616.8,0.00020821,2]
[369700000,1751704266443,-460.0,0.00020821,2]
[369700001,1751704266452,-460.0,0.00020821,2]
[369700002,1751704266461,-1164.28,0.00020821,2]
[369700003,1751704266471,-619.37,0.00020821,2]
[369700004,1751704266481,-460.0,0.00020821,2]
[369700005,1751704266490,-155.31,0.00020821,2]
[369700006,1751704266499,-460.0,0.00020821,2]
[369700007,1751704266509,-1134.22,0.00020821,2]
[369700008,1751704266519,-460.0,0.00020821,2]
[369700009,1751704266528,-1788.36,0.00020821,2]
[369700010,1751704266537,-1137.75,0.00020821,2]
[369700011,1751704266547,-460.0,0.00020821,2]
[369700012,1751704266556,-2762.52,0.00020821,2]
[369700013,1751704266565,-378.01,0.00020821,2]
[369700014,1751704266575,-160.24,0.00020821,2]
[369700015,1751704266584,-460.0,0.00020821,2]
[369700016,1751704266594,-460.0,0.00020821,2]
[369700017,1751704266604,-1927.71,0.00020821,2]
[369700018,1751704266613,-4017.64,0.00020821,2]
[369700019,1751704266622,-460.0,0.00020821,2]
[369700020,1751704266631,-493.94,0.00020821,2]
[369700021,1751704266641,-460.0,0.00020821,2]
[369700022,1751704266650,-460.0,0.00020821,2]
[369700023,1751704266660,-628.3,0.00020821,2]
[369700024,1751704266677,-498.761264,0.00020821,2]
[369700025,1751704266687,-742.21,0.00020821,2]
[369700026,1751704266699,-498.761264,0.00020821,2]
[369700027,1751704266710,-909.15,0.00020821,2]
[369700028,1751704266719,-2245.38,0.00020821,2]
[369700029,1751704266729,-271.39,0.00020821,2]
[369700030,1751704266738,-466.36,0.00020821,2]
[369700031,1751704266748,-506.07,0.00020821,2]
[369700032,1751704266757,-3792.29,0.00020821,2]
[369700033,1751704266766,-460.0,0.00020821,2]
[369700034,1751704266775,-460.0,0.00020821,2]
[369700035,1751704266784,-460.0,0.00020821,2]
[369700036,1751704266794,-460.0,0.00020821,2]
[369700037,1751704266803,-460.0,0.00020821,2]
[369700038,1751704266812,-1256.94,0.00020821,2]
[369700039,1751704266821,-2336.48,0.00020821,2]
[369700040,1751704266830,-1656.6,0.00020821,2]
[369700041,1751704266839,-460.0,0.00020821,2]
[369700042,1751704266849,-566.79,0.00020821,2]
[369700043,1751704266857,-1475.22,0.00020821,2]
[369700044,1751704266867,-460.0,0.00020821,2]
[369700045,1751704266876,-460.0,0.00020821,2]
[369700046,1751704266885,-565.2,0.00020821,2]
[369700047,1751704266895,-1325.52,0.00020821,2]
[369700048,1751704266904,-625.02,0.00020821,2]
[369700049,1751704266913,-460.0,0.00020821,2]
[369700050,1751704266921,-470.33,0.00020821,2]
[369700051,1751704266930,-284.87,0.00020821,2]
[369700052,1751704266940,-345.4,0.00020821,2]
[369700053,1751704266950,-1232.09,0.00020821,2]
[369700054,1751704266959,-1457.88,0.00020821,2]
[369700055,1751704266968,-460.0,0.00020821,2]
[369700056,1751704266977,-460.0,0.00020821,2]
[369700057,1751704266986,-460.0,0.00020821,2]
[369700058,1751704266998,-460.0,0.00020821,2]
[369700059,1751704267007,-596.18,0.00020821,2]
[369700060,1751704267017,-401.7045797,0.00020821,2]
[369700061,1751704267027,-460.0,0.00020821,2]
[369700062,1751704267038,-535.20902532,0.00020821,2]
[369700063,1751704267047,-791.06,0.00020821,2]
[369700064,1751704267057,-460.0,0.00020821,2]
[369700065,1751704267156,-157.36,0.00020821,2]
[369700066,1751704267166,-613.01,0.00020821,2]
[369700067,1751704267176,-460.0,0.00020821,2]
[369700068,1751704267186,-234.92668011,0.00020821,2]
[369700069,1751704267195,-976.15,0.00020821,2]
[369700070,1751704267205,-460.0,0.00020821,2]
[369700071,1751704267215,-3563.33,0.00020821,2]
[369700072,1751704267225,-651.59,0.00020821,2]
[369700073,1751704267234,-460.0,0.00020821,2]
[369700074,1751704267247,-160.12597496,0.00020845,2]
[369700075,1751704267258,-168.0,0.00020851,2]
[369700076,1751704267269,-500.0,0.00020868,2]
[369700077,1751704267280,-1500.0,0.00020868,2]
[369700078,1751704267291,-1500.0,0.00020868,2]
[369700079,1751704267301,-1500.0,0.00020868,2]
[369700080,1751704267310,-1500.0,0.00020868,2]
[369700081,1751704267322,-1500.0,0.00020868,2]
[369700082,1751704267332,-1500.0,0.00020868,2]
[369700083,1751704267342,-1296.50981405,0.00020868,2]
[369700084,1751704267353,-1500.0,0.00020868,2]
[369700085,1751704267363,-743.6402379,0.00020868,2]
[369700086,1751704267373,-1500.0,0.00020868,2]
[369700087,1751704267383,-1500.0,0.00020868,2]
[369700088,1751704267394,-1500.0,0.00020868,2]
[369700089,1751704267404,-1500.0,0.00020868,2]
[369700090,1751704267413,-1500.0,0.00020868,2]
[369700091,1751704267423,-1500.0,0.00020868,2]
[369700092,1751704267438,-500.0,0.00020868,2]
[369700093,1751704267450,-1500.0,0.00020868,2]
[369700094,1751704267459,-168.0,0.00020878,2]
[369700095,1751704267471,-240.583333,0.0002088,2]
[369700096,1751704267481,-151.0,0.000209,3]
[369700097,1751704267492,-165.49747021,0.00020904,2]
[369700098,1751704267501,-168.0,0.00020911,2]
[369700099,1751704267511,-168.0,0.00020925,2]
[369700100,1751704267520,-13046.45576444,0.00020936,2]
[369700101,1751704267529,-207.59120117,0.00020969,4]
[369700102,1751704267539,-240.583333,0.00020972,2]
[369700103,1751704267548,-620.91777822,0.00021,2]
[369700104,1751704267558,-168.0,0.00021001,2]
[369700105,1751704267571,-151.0,0.00021036,2]
[369700106,1751704267582,-165.49747021,0.00021041,2]
[369700107,1751704267592,-5000.0,0.00021054,2]
[369700108,1751704267602,-20265.91944633,0.00021054,2]
[369700109,1751704267651,-1337.380915,0.00021054,2]
[369700110,1751704267664,-3396.69963867,0.00021054,2]
[369700111,1751704267674,-1088.47663625,0.00021055,2]
[369700112,1751704267684,-1000.0,0.00021055,2]
[369700113,1751704267693,-240.583333,0.00021065,2]
[369700114,1751704267703,-151.0,0.00021081,5]
[369700115,1751704267712,-200.98010284,0.00021094,2]
[369700116,1751704267721,-500.0,0.00021094,10]
[369700117,1751704267732,-500.0,0.00021094,10]
[369700118,1751704267744,-534.39,0.00021095,2]
[369700119,1751704267754,-151.0,0.00021095,2]
[369700120,1751704267767,-589.3975446,0.00021095,2]
[369700121,1751704267776,-501.35,0.00021095,2]
[369700122,1751704267787,-289.34,0.00021095,2]
[369700123,1751704267798,-460.0,0.00021095,2]
[369700124,1751704267808,-460.0,0.00021095,2]
[369700125,1751704267827,-460.0,0.00021095,2]
[369700126,1751704267845,-469.1,0.00021095,2]
[369700127,1751704267863,-460.0,0.00021095,2]
[369700128,1751704267883,-460.0,0.00021095,2]
[369700129,1751704267905,-460.0,0.00021095,2]
[369700130,1751704267923,-652.16,0.00021095,2]
[369700131,1751704267942,-573.96,0.00021095,2]
[369700132,1751704267957,-460.0,0.00021095,2]
[369700133,1751704267975,-460.0,0.00021095,2]
[369700134,1751704267994,-316.41453164,0.00021095,2]
[369700135,1751704268016,-636.47,0.00021095,2]
[369700136,1751704268031,-664.47,0.00021095,2]
[369700137,1751704268047,-460.0,0.00021095,2]
[369700138,1751704268063,-457.51949468,0.00021095,2]
[369700139,1751704268079,-416.73032609,0.00021095,2]
[369700140,1751704268092,-505.79,0.00021095,2]
[369700141,1751704268109,-460.0,0.00021095,2]
[369700142,1751704268124,-460.0,0.00021095,2]
[369700143,1751704268138,-460.0,0.00021095,2]
[369700144,1751704268153,-460.0,0.00021095,2]
[369700145,1751704268169,-151.0,0.00021095,2]
[369700146,1751704268184,-178.9956634,0.00021095,2]
[369700147,1751704268199,-460.0,0.00021095,2]
[369700148,1751704268213,-460.0,0.00021095,2]
[369700149,1751704268228,-616.8,0.00021095,2]
[369700150,1751704268246,-460.0,0.00021095,2]
[369700151,1751704268260,-1164.28,0.00021095,2]
[369700152,1751704268276,-619.37,0.00021095,2]
[369700153,1751704268292,-460.0,0.00021095,2]
[369700154,1751704268307,-151.0,0.00021095,2]
[369700155,1751704268321,-211.21467,0.00021095,2]
[369700156,1751704268331,-243.12,0.00021095,2]
[369700157,1751704268340,-1134.22,0.00021095,2]
[369700158,1751704268350,-460.0,0.00021095,2]
[369700159,1751704268360,-346.56439311,0.00021095,2]
[369700160,1751704268375,-1441.79560689,0.00021095,2]
[369700161,1751704268386,-1137.75,0.00021095,2]
[369700162,1751704268396,-460.0,0.00021095,2]
[369700163,1751704268408,-2253.6433112,0.00021095,2]
[369700164,1751704268420,-508.8766888,0.00021095,2]
[369700165,1751704268431,-369.34969472,0.00021095,2]
[369700173,1751704561010,162.166819,0.00013699,2]
[369700176,1751704800100,350.0,0.00016,2]
[369700221,1751705431699,-159.98568789,0.000188,2]
[369700224,1751705431719,-198.38483225,0.000189,2]
[369700227,1751705431729,-151.0,0.00018965,2]
[369700229,1751705431739,-160.0,0.00018966,2]
[369700231,1751705431749,-500.0,0.00018973,2]
[369700233,1751705431758,-254.76009273,0.00018973,2]
[369700235,1751705431771,-245.23990727,0.00018973,2]
[369700237,1751705431781,-42.88039267,0.00018973,2]
[369700241,1751705431806,-457.11960733,0.00018973,2]
[369700243,1751705431816,-500.0,0.00018973,2]
[369700245,1751705431826,-500.0,0.00018973,2]
[369700247,1751705431836,-500.0,0.00018973,2]
[369700249,1751705431845,-500.0,0.00018973,2]
[369700251,1751705431855,-500.0,0.00018973,2]
[369700253,1751705431864,-500.0,0.00018973,2]
[369700255,1751705431874,-500.0,0.00018973,2]
[369700257,1751705431883,-500.0,0.00018973,2]
[369700259,1751705431892,-500.0,0.00018973,2]
[369700261,1751705431902,-500.0,0.00018973,2]
[369700263,1751705431911,-500.0,0.00018973,2]
[369700265,1751705431921,-300.0,0.00018974,2]
[369700267,1751705431930,-500.0,0.00018975,2]
[369700269,1751705431940,-505.82092808,0.00018975,2]
[369700271,1751705431949,-500.0,0.00018975,2]
[369700273,1751705431958,-320.57197993,0.00018975,2]
[369700275,1751705431968,-500.0,0.00018975,2]
[369700277,1751705431977,-418.52435421,0.00018975,2]
[369700279,1751705431987,-30389.32355555,0.00018976,2]
[369700439,1751705437702,-448.6547404,0.00018976,2]
[369700440,1751705437715,-745.41038568,0.00018976,2]
[369700441,1751705437726,-643.36465114,0.00018976,2]
[369700442,1751705437756,-337773.24666723,0.00018976,2]
[369700443,1751705437766,-538.03161188,0.00019067,2]
[369700444,1751705437776,-8451.43930471,0.00019068,2]
[369700445,1751705437786,-538.03161187,0.0001907,2]
[369700446,1751705437795,-538.03161187,0.00019073,2]
[369700447,1751705437805,-538.03161187,0.00019075,2]
[369700448,1751705437814,-538.03161187,0.00019078,2]
[369700449,1751705437823,-500.0,0.00019165,2]
[369700450,1751705437833,-4252.81938121,0.00019165,2]
[369700451,1751705437842,-459.81624308,0.00019165,2]
[369700452,1751705437852,-407.36151903,0.00019165,2]
[369700453,1751705437861,-4252.81938121,0.00019165,2]
[369700454,1751705437871,-4252.81938121,0.00019165,2]
[369700455,1751705437880,-4252.81938121,0.00019165,2]
[369700456,1751705437889,-4252.81938121,0.00019165,2]
[369700457,1751705437898,-4252.81938121,0.00019165,2]
[369700458,1751705437908,-4252.81938121,0.00019165,2]
[369700459,1751705437917,-500.0,0.00019165,2]
[369700460,1751705437926,-4252.81938121,0.00019165,2]
[369700461,1751705437936,-500.0,0.00019165,2]
[369700462,1751705437947,-4252.81938121,0.00019165,2]
[369700463,1751705437957,-500.0,0.00019165,2]
[369700464,1751705437968,-4252.81938121,0.00019165,2]
[369700465,1751705437979,-4252.81938121,0.00019165,2]
[369700466,1751705437988,-500.0,0.00019165,2]
[369700467,1751705437997,-4252.81938121,0.00019165,2]
[369700468,1751705438007,-4252.81938121,0.00019165,2]
[369700469,1751705438016,-4252.81938121,0.00019165,2]
[369700470,1751705438025,-4252.81938121,0.00019165,2]
[369700471,1751705438037,-4252.81938121,0.00019165,2]
[369700472,1751705438047,-4252.81938121,0.00019165,2]
[369700473,1751705438055,-4252.81938121,0.00019165,2]
[369700474,1751705438064,-4252.81938121,0.00019165,2]
[369700475,1751705438074,-500.0,0.00019171,2]
[369700476,1751705438084,-500.0,0.00019173,2]
[369700477,1751705438093,-619.9421366,0.00019173,2]
[369700478,1751705438102,-500.0,0.00019173,2]
[369700479,1751705438112,-650.0,0.00019173,2]
[369700480,1751705438121,-502.81107151,0.00019173,2]
[369700481,1751705438131,-502.67715324,0.00019173,2]
[369700482,1751705438140,-500.0,0.00019173,2]
[369700483,1751705438150,-500.0,0.00019173,2]
[369700484,1751705438160,-500.0,0.00019173,2]
[369700485,1751705438170,-500.0,0.00019173,2]
[369700486,1751705438179,-500.0,0.00019173,2]
[369700487,1751705438188,-500.0,0.00019173,2]
[369700488,1751705438197,-378.14361845,0.00019173,2]
[369700489,1751705438207,-500.0,0.00019173,2]
[369700490,1751705438216,-500.0,0.00019173,2]
[369700491,1751705438225,-500.0,0.00019173,2]